[Event "Marshall Masters 44"]
[Site "New York"]
[Date "2024.12.18"]
[Round "4.2"]
[White "Lenderman, Aleksandr"]
[Black "Moor, Nathaniel Philip"]
[Result "1-0"]
[ECO "E14"]
[WhiteElo "2480"]
[BlackElo "2250"]
[Annotator "TA"]
[PlyCount "150"]
[EventDate "2024.12.17"]
[EventType "swiss"]
[EventCountry "USA"]
[SourceTitle "playchess.com"]
[Source "ChessBase"]
[SourceQuality "1"]
[TimeMode "Bronstein"]
[TimeControl "1500+5"]

{[%evp 57,150,0,63,126,87,-15,-25,-30,-23,-181,-181,-193,-189,-188,-185,-195,-185,-186,-175,-191,-187,-181,0,-24,-25,-26,-26,-109,-45,-197,-19,-24,-6,-30,0,-41,0,-99,-95,-71,-58,-58,-77,-93,-14,-11,-16,-76,-83,-125,-8,-8,185,180,802,70,70,68,92,52,68,51,73,70,29982,69,69,69,70,68,69,69,69,55,70,70,70,70,93,70,70,70,75,70,324,324,295,0,1638,1508,29967,29970,12829,11034,1420]} 1. d4 {[%emt 0:00:05]} Nf6 {[%emt 0:00:05]} 2. Nf3 {[%emt 0:00:05]} e6 {[%emt 0:00:09]} 3. c4 {[%emt 0:00:05]} b6 {[%emt 0:00:09]} 4. e3 {[%emt 0:00:05]} Bb7 {[%emt 0:00:07]} 5. Bd3 {[%emt 0:00:05]} d5 {[%emt 0:00:30]} 6. O-O {[%emt 0:00:12]} dxc4 {[%emt 0:00:34]} 7. Bxc4 {[%emt 0:00:05]} Be7 {[%emt 0:00:05]} 8. b3 {[%emt 0:00:06]} O-O {[%emt 0:00:10]} 9. Bb2 {[%emt 0:00:05]} Nbd7 {[%emt 0:00:17]} 10. Qe2 {[%emt 0:00:27]} c5 {[%emt 0:00:38]} 11. dxc5 {[%emt 0:00:41]} Nxc5 {[%emt 0:01:15]} 12. Rd1 {[%emt 0:00:05]} Qc7 {[%emt 0:00:24]} 13. Nbd2 {[%emt 0:02:13]} Bd6 {[%emt 0:01:52]} 14. Rac1 {[%emt 0:01:15]} Qe7 {[%emt 0:00:16]} 15. a3 {[%emt 0:03:27]} Rac8 {[%emt 0:00:20]} 16. b4 {[%emt 0:00:49]} Nce4 {[%emt 0:00:50]} 17. Nxe4 {[%emt 0:00:08]} Nxe4 {[%emt 0:00:30]} 18. Ba6 {[%emt 0:00:07]} Rxc1 {[%emt 0:01:31]} 19. Rxc1 {[%emt 0:00:05]} Ba8 {[%emt 0:00:05]} 20. Nd4 {[%emt 0:02:05]} Qh4 {[%emt 0:02:05]} 21. g3 {[%emt 0:00:21]} Qh3 {[%emt 0:01:02]} 22. f3 {[%emt 0:00:31]} Ng5 {[%emt 0:01:11]} 23. f4 {[%emt 0:01:57]} Ne4 {[%emt 0:03:30]} 24. Nc6 {[%emt 0:01:00]} h5 {[%emt 0:02:46]} 25. Bd3 {[%emt 0:00:25]} Nf6 {[%emt 0:00:35]} 26. Bxf6 {[%emt 0:00:25]} gxf6 {[%emt 0:00:06]} 27. Be4 {[%emt 0:00:11]} a5 {[%emt 0:01:04]} 28. Bg2 {[%emt 0:02:54]} Qf5 {[%emt 0:00:50]} 29. Nd4 {[%emt 0:00:51]} Qh7 {[%emt 0:00:38]} (29... Qg4 $11) 30. Bxa8 $1 $14 {[%emt 0:01:08]} Rxa8 {[%emt 0:00:05]} 31. Nb5 {[%emt 0:00:09]} ({White should try} 31. Qf3 $1 $16 {[%cal Rf3a8]} Rf8 (31... Rd8 32. f5 $14) 32. f5) 31... Bf8 $11 {[%emt 0:00:08]} 32. Qf3 $1 {[%emt 0:02:32]} Rd8 {[%emt 0:00:40]} 33. bxa5 $2 {[%emt 0:00:13]} (33. f5 $1 $11 {and White stays safe.}) 33... Qd3 $19 {[%emt 0:00:05]} (33... bxa5 34. f5 $15) 34. a4 {[%emt 0:00:41]} bxa5 {[%emt 0:00:41]} 35. Kh1 {[%emt 0:00:25]} Qd2 {[%emt 0:00:24]} 36. Rf1 {[%emt 0:00:32]} Rd3 {[%emt 0:00:24]} 37. Qxh5 {[%emt 0:00:11]} Qxe3 {[%emt 0:00:38]} (37... Rxe3 38. Qd1 Qb4 39. Qd4) 38. Qg4+ {[%emt 0:00:05]} Bg7 {[%emt 0:00:06]} 39. f5 {[%emt 0:00:06]} Kf8 $2 {[%emt 0:00:51]} ({Better is} 39... e5 $19 40. Kg2 Rd2+ 41. Kh3 Qh6+ 42. Qh4 Qxh4+ 43. gxh4 Bf8) 40. fxe6 {[%emt 0:00:17]} fxe6 {[%emt 0:00:05]} 41. Nc7 {[%emt 0:00:55]} f5 {[%emt 0:00:13]} 42. Qc4 {[%emt 0:00:05]} (42. Nxe6+ $1 $11 Qxe6 43. Qxf5+ Qxf5 44. Rxf5+ Kg8 45. Rxa5) 42... Rd6 {[%emt 0:00:36]} (42... Qe2 $17 {[%cal Re2f1]} 43. Nxe6+ (43. Qxe6 $2 Qxf1#) 43... Ke7 44. Qc5+ Rd6 (44... Kxe6 45. Qxf5+ Kd6 46. Rf2 $17) 45. Qc7+ Kxe6 46. Qc8+ Kf7 47. Qc7+ Kg8 48. Qc8+ Bf8 49. Qxf5 Qe8) 43. Nb5 $2 {[%emt 0:00:15]} (43. Nxe6+ $15 Rxe6 44. Rxf5+ Kg8 45. Kg2) 43... Rd5 $2 {[%emt 0:00:00]} (43... Rd2 $19 44. Qc8+ Kf7 45. Qb7+ Kg6) 44. Nc7 $11 {[%emt 0:00:05]} Re5 {[%emt 0:00:00]} (44... Bd4 $5 45. Kg2 Re5 $15) 45. Qc6 {[%emt 0:00:10]} Kf7 {[%emt 0:00:00]} (45... Qe4+ {simplifies} 46. Qxe4 Rxe4 47. Nxe6+ Rxe6 48. Rxf5+ Ke7) 46. Qe8+ {[%emt 0:00:05]} Kf6 {[%emt 0:00:00]} 47. Qd8+ {[%emt 0:00:08]} (47. Qg8 $11) 47... Kg6 $17 {[%emt 0:00:00]} 48. Qe8+ {[%emt 0:00:05]} Kh6 {[%emt 0:00:00]} 49. Qc6 $1 {[%emt 0:00:05]} Qe2 {[%emt 0:00:00]} 50. Qf3 {[%emt 0:00:05]} Qc4 {[%emt 0:00:05]} (50... Qc2 $17 51. Ne8 Re2 (51... Qxa4 52. Nd6 $15) 52. Nxg7 Rxh2+ (52... Kxg7 53. h4 $15) 53. Kg1 Kxg7 54. Qb7+ Kh6) 51. Qf4+ $11 {[%emt 0:00:05]} Qxf4 {[%emt 0:00:04]} 52. gxf4 {[%emt 0:00:05]} (52. Rxf4 $11 {keeps the balance.} Kg6 53. Rc4) 52... Re4 $17 {[%emt 0:00:04]} 53. Rc1 {[%emt 0:00:05] [#]} Bf8 {[%emt 0:00:04]} (53... Rxf4 $6 54. Nxe6 Rxa4 55. Rc5 $11) (53... Kg6 $1 $17 {[%cal Og7h6] and ...Bh6! should not be overlooked} 54. Rc5 Bh6 (54... Rxa4 55. Nxe6 Bb2 56. Kg2 $11)) 54. Rc6 $11 {[%emt 0:00:05]} Rxf4 $2 {[%emt 0:00:04]} (54... Kh5 $11 {and Black stays safe.}) 55. Nxe6 $18 {[%emt 0:00:05]} Rxa4 $2 {[%emt 0:00:05]} ({Not} 55... Rf1+ $2 56. Kg2 Ra1 57. Nxf8+ $18) (55... Rb4) 56. Nxf8+ $2 {[%emt 0:00:05]} (56. Nc5+ $18 Kg5 57. Nxa4) 56... Kg5 $14 {[%emt 0:00:04]} 57. Rc2 {[%emt 0:00:05]} Re4 {[%emt 0:00:04]} 58. Kg2 {[%emt 0:00:05]} a4 {[%emt 0:00:04]} 59. Nd7 {[%emt 0:00:05]} Rd4 {[%emt 0:00:04]} 60. Nc5 {[%emt 0:00:05]} a3 $2 {[%emt 0:00:04][%mdl 8192]} (60... Kg4 $14) 61. Kf3 $2 {[%emt 0:00:05]} (61. Ne6+ {mates} Kf6 62. Nxd4 Kg7 63. Nxf5+ Kg6 64. Ne7+ Kf7 65. Ra2 Kg7 66. Rxa3) 61... Rf4+ {[%emt 0:00:04]} 62. Ke3 {[%emt 0:00:05]} Rh4 {[%emt 0:00:04]} 63. Nd3 {[%emt 0:00:05]} Rh3+ {[%emt 0:00:04]} 64. Kd4 {[%emt 0:00:05]} Rh4+ {[%emt 0:00:04]} 65. Kd5 {[%emt 0:00:05]} Rh3 {[%emt 0:00:04]} 66. Rg2+ {[%emt 0:00:05]} Kf6 {[%emt 0:00:04]} 67. Ne5 {[%emt 0:00:05]} Rb3 {[%emt 0:00:04]} 68. Rg6+ {[%emt 0:00:05]} Ke7 {[%emt 0:00:04]} 69. Re6+ {[%emt 0:00:05]} Kd8 {[%emt 0:00:04]} 70. Ra6 {[%emt 0:00:05]} Ke7 $2 {[%emt 0:00:04][%mdl 8192]} (70... Rh3 $14) 71. Ng6+ $18 {[%emt 0:00:05]} Kf7 {[%emt 0:00:04]} 72. Ne5+ $2 {[%emt 0:00:05]} (72. h4 $18) 72... Kg7 $2 {[%emt 0:00:04][%mdl 8192] [#]} (72... Ke7 $11) 73. Ke6 $1 $18 {[%emt 0:00:05]} Rh3 {[%emt 0:00:04]} 74. Ra7+ {[%emt 0:00:05]} (74. Kxf5 Rh5+ 75. Kf4 Rxh2 $14) 74... Kh6 {[%emt 0:00:04]} 75. Kxf5 {[%emt 0:00:05]} Rh5+ {[%emt 0:00:05]} 1-0

[Event "Marshall Masters 44"]
[Site "New York"]
[Date "2024.12.18"]
[Round "4.3"]
[White "Lu, Maximillian"]
[Black "Zeltsan, Joseph"]
[Result "1/2-1/2"]
[ECO "A17"]
[WhiteElo "2404"]
[BlackElo "2405"]
[Annotator "TA"]
[PlyCount "70"]
[EventDate "2024.12.17"]
[EventType "swiss"]
[EventCountry "USA"]
[SourceTitle "playchess.com"]
[Source "ChessBase"]
[SourceQuality "1"]
[TimeMode "Bronstein"]
[TimeControl "1500+5"]

{[%evp 9,70,6,24,9,15,14,20,0,4,-16,27,-15,-6,-7,-6,-7,-5,-91,-41,-46,-37,-38,-32,-32,-35,-43,-30,-46,-47,-100,38,-383,191,-25,-21,-10,-15,-9,-14,-23,-22,-17,-13,-29,-20,-38,-25,-35,-2,-26,-25,-17,-11,-10,-16,-14,-11,-6,0,0,0,0,0]} 1. Nf3 {[%emt 0:00:05]} d5 {[%emt 0:00:15]} 2. e3 {[%emt 0:00:05]} Nf6 {[%emt 0:00:05]} 3. c4 {[%emt 0:00:05]} e6 {[%emt 0:00:05]} 4. Nc3 {[%emt 0:00:05]} Bd6 {[%emt 0:00:05]} 5. b3 {[%emt 0:00:11]} c5 {[%emt 0:00:05]} 6. Bb2 {[%emt 0:00:05]} Nc6 {[%emt 0:00:05]} 7. cxd5 {[%emt 0:01:20]} exd5 {[%emt 0:01:05]} 8. Rc1 {[%emt 0:00:07]} O-O {[%emt 0:04:02]} 9. Be2 {[%emt 0:00:33]} Re8 {[%emt 0:01:19]} 10. d4 {[%emt 0:00:31]} cxd4 {[%emt 0:00:16]} 11. Nxd4 {[%emt 0:00:05]} Nxd4 {[%emt 0:00:05]} 12. Qxd4 {[%emt 0:00:22]} Be5 {[%emt 0:00:05]} 13. Qd3 {[%emt 0:01:13] [#]} (13. Qd2 $11) 13... Ne4 $1 {[%emt 0:02:41]} 14. O-O $15 {[%emt 0:03:28]} Bf5 {[%emt 0:01:04]} 15. Qd1 {[%emt 0:02:23]} Re6 {[%emt 0:04:05]} 16. f4 {[%emt 0:04:05]} Bxc3 {[%emt 0:00:05]} 17. Bxc3 {[%emt 0:00:05]} Nxc3 {[%emt 0:00:05]} 18. Rxc3 {[%emt 0:00:05]} Qb6 $1 {[%emt 0:00:05]} 19. Qd2 {[%emt 0:11:42] [#]} (19. Rf2 $15) 19... d4 20. Qxd4 $2 {[%emt 0:00:00][%mdl 8192]} (20. exd4 $14 Be4 21. Rd1) 20... Re4 $4 {[%emt 0:10:58][%mdl 8192]} (20... Qxd4 $19 {and life is good for Black.} 21. exd4 Rxe2) 21. Qd5 $2 ({White should play} 21. Qxb6 $18 axb6 22. Rd1) 21... Rxe3 $11 {[%emt 0:00:00]} 22. Rxe3 {[%emt 0:00:00]} Qxe3+ {[%emt 0:00:00]} 23. Rf2 {[%emt 0:00:00]} Be4 {[%emt 0:00:00]} 24. Qd1 {[%emt 0:00:00]} Qb6 {[%emt 0:00:00]} 25. Bf1 {[%emt 0:00:00]} Rd8 {[%emt 0:00:00]} (25... Re8 {keeps more tension.} 26. g3 g6 27. Qd7 Bc6) 26. Qe1 {[%emt 0:00:00]} f5 {[%emt 0:00:00]} 27. Kh1 {[%emt 0:00:00]} Qd4 {[%emt 0:00:00]} 28. h3 {[%emt 0:00:00]} h6 {[%emt 0:00:00]} 29. Kh2 {[%emt 0:00:00]} Kh7 {[%emt 0:00:00]} 30. g3 {[%emt 0:00:00]} Qc5 {[%emt 0:00:00] The position is equal.} 31. Rd2 {[%emt 0:00:00]} Qc3 {[%emt 0:00:00]} 32. Re2 {[%emt 0:00:00]} Qxe1 {[%emt 0:00:00]} 33. Rxe1 {[%emt 0:00:00]} Bf3 {[%emt 0:00:00]} 34. Re3 {[%emt 0:00:00]} Rd2+ {[%emt 0:00:00]} 35. Kg1 {[%emt 0:00:00]} Be4 {[%emt 0:00:00] Weighted Error Value: White=0.42/Black=0.31.  Loses game:     	White=1     	---        Missed win:     	White=1     	Black=1      Mistake:       	White=2     	Black=2      Inaccurate:     	White=1     	Black=2      OK:         	White=8     	Black=8      Best:        	White=3     	Black=3      Strong:       	---       	Black=1} 1/2-1/2

[Event "Marshall Masters 44"]
[Site "New York"]
[Date "2024.12.18"]
[Round "4.4"]
[White "Tanenbaum, Zachary"]
[Black "Rohde, Michael"]
[Result "1-0"]
[ECO "C54"]
[WhiteElo "2297"]
[BlackElo "2286"]
[Annotator "RC"]
[PlyCount "77"]
[EventDate "2024.12.17"]
[EventType "swiss"]
[EventCountry "USA"]
[SourceTitle "playchess.com"]
[Source "ChessBase"]
[SourceQuality "1"]
[TimeMode "Bronstein"]
[TimeControl "1500+5"]

1. e4 {[%emt 0:00:05]} e5 {[%emt 0:00:05]} 2. Nf3 {[%emt 0:00:05]} Nc6 {[%emt 0:00:05]} 3. Bc4 {[%emt 0:00:05]} Bc5 {[%emt 0:00:06]} 4. c3 {[%emt 0:00:12]} Nf6 {[%emt 0:00:05]} 5. d3 {[%emt 0:00:05]} d6 {[%emt 0:00:05]} 6. O-O {[%emt 0:00:05]} O-O {[%emt 0:00:26]} 7. h3 {[%emt 0:00:10]} a6 {[%emt 0:00:16]} 8. a4 {[%emt 0:00:05]} Ba7 {[%emt 0:00:05]} 9. Re1 {[%emt 0:00:18]} Be6 {[%emt 0:00:35]} 10. Bxe6 {[%emt 0:00:07]} fxe6 {[%emt 0:00:05]} 11. b4 {[%emt 0:00:06]} Qe8 {[%emt 0:00:24]} 12. Nbd2 {[%emt 0:00:25]} Nh5 {[%emt 0:00:11]} 13. Nf1 {[%emt 0:00:08]} Nf4 {[%emt 0:00:30]} 14. Ra2 {[%emt 0:00:20]} Qg6 {[%emt 0:00:15]} 15. Bxf4 {[%emt 0:00:05]} Rxf4 {[%emt 0:00:08]} 16. Kh1 {[%emt 0:00:16]} Raf8 {[%emt 0:00:07]} 17. N1h2 {[%emt 0:00:10]} Bb6 {[%emt 0:00:19]} 18. b5 {[%emt 0:03:24]} axb5 {[%emt 0:00:07]} 19. axb5 {[%emt 0:00:05]} Ne7 {[%emt 0:00:13]} 20. g3 {[%emt 0:00:37]} R4f6 {[%emt 0:00:30]} 21. d4 {[%emt 0:03:30]} exd4 {[%emt 0:00:15]} 22. cxd4 {[%emt 0:00:33]} h6 {[%emt 0:00:11]} 23. Kg2 {[%emt 0:09:02]} R6f7 {[%emt 0:02:16]} 24. Qb3 {[%emt 0:00:53]} Kh8 {[%emt 0:02:44]} 25. Nh4 {[%emt 0:00:21]} Qh7 {[%emt 0:00:22]} 26. Qxe6 {[%emt 0:01:27]} Bxd4 {[%emt 0:00:10]} 27. f4 {[%emt 0:01:07]} Bf6 {[%emt 0:00:35]} 28. N4f3 {[%emt 0:00:16]} Ng8 {[%emt 0:00:07]} 29. Qd5 {[%emt 0:00:57]} Bc3 {[%emt 0:00:31]} 30. Re3 {[%emt 0:00:07]} Nf6 {[%emt 0:00:11]} 31. Qc4 {[%emt 0:00:08]} d5 {[%emt 0:00:53]} 32. exd5 {[%emt 0:00:31]} Qb1 {[%emt 0:00:24]} 33. Rxc3 {[%emt 0:00:06]} Re7 {[%emt 0:00:36]} 34. Rc1 {[%emt 0:00:19]} Qg6 {[%emt 0:00:21]} 35. Ne5 {[%emt 0:00:20]} Rxe5 {[%emt 0:00:05]} 36. fxe5 {[%emt 0:00:05]} Ne4 {[%emt 0:00:05]} 37. Qd3 {[%emt 0:00:18]} Qg5 {[%emt 0:00:34]} 38. Rf1 {[%emt 0:00:11]} Rxf1 {[%emt 0:00:15]} 39. Nxf1 {[%emt 0:00:05]} 1-0